bitfinex/quotes_SOLUSD_20260105
["timestamp","ask_amount","ask_price","bid_price","bid_amount"]
[1767635151104,0.19800009,135.6,135.54,13.44]
[1767635151306,0.10097991,135.59,135.53,8.08448428]
[1767635151519,0.10097991,135.59,135.53,0.70623449]
[1767635151816,9.6201549,135.6,135.54,0.70623449]
[1767635152604,35.62946099,135.61,135.55,0.70623449]
[1767635153222,26.00930609,135.61,135.55,0.70623449]
[1767635153724,7.57408745,135.61,135.56,0.71206907]
[1767635154505,7.37408745,135.61,135.56,0.71206907]
[1767635155621,13.44,135.62,135.56,0.71206907]
[1767635155622,20.81367098,135.62,135.57,0.71206907]
[1767635156004,7.37367098,135.62,135.57,0.71206907]
[1767635157622,103.2,135.66,135.59,0.71206907]
[1767635157623,7.37191301,135.65,135.59,0.71206907]
[1767635158629,7.57090301,135.65,135.59,0.71206907]
[1767635158803,13.49133176,135.65,135.59,0.71206907]
[1767635159615,7.57090301,135.65,135.59,0.71206907]
[1767635159819,13.49133176,135.65,135.59,0.71206907]
[1767635160323,7.57090301,135.65,135.59,0.71206907]
[1767635160831,0.0999999,135.64,135.59,7.37515841]
[1767635161007,7.37191301,135.65,135.6,0.67377349]
[1767635163428,7.37191301,135.65,135.61,0.67377349]
[1767635163626,20.8115812,135.66,135.61,0.67377349]
[1767635163820,45.35942395,135.66,135.61,0.67377349]
[1767635164718,6.02042865,135.65,135.59,0.67377349]
[1767635165229,7.3724565,135.64,135.59,8.04891838]
[1767635165429,7.3724565,135.64,135.6,0.67377349]
[1767635168430,7.57045659,135.64,135.6,0.67377349]
[1767635169134,7.37408745,135.61,135.56,0.67377349]
[1767635171036,7.37408745,135.61,135.51,0.67377349]
[1767635171037,0.19514702,135.58,135.51,0.67377349]
[1767635171223,7.37626318,135.57,135.53,0.67377349]
[1767635173538,13.539,135.59,135.54,0.67377349]
[1767635173837,15.95224672,135.59,135.54,0.67377349]
[1767635174240,0.19899,135.58,135.54,0.67377349]
[1767635174436,21.01548417,135.59,135.54,0.67377349]
[1767635174642,0.2,135.59,135.54,0.67377349]
[1767635175546,0.2,135.59,135.54,8.05137003]
[1767635175935,9.98750532,135.61,135.55,0.67377349]
[1767635176236,18.43288837,135.63,135.55,0.67377349]
[1767635176237,9.78699936,135.62,135.55,0.67377349]
[1767635176443,7.37317876,135.63,135.55,0.67377349]
[1767635176628,20.81317876,135.63,135.55,0.67377349]
[1767635177650,20.81264672,135.64,135.57,0.67377349]
[1767635178028,7.37264672,135.64,135.57,0.67377349]
[1767635178235,20.81264672,135.64,135.57,0.67377349]
[1767635178630,7.37264672,135.64,135.57,0.67377349]
[1767635178842,7.37217329,135.65,135.58,0.67377349]
[1767635179043,24.34673545,135.67,135.58,0.67377349]
[1767635179044,7.37155858,135.66,135.58,0.67377349]
[1767635179745,7.37155858,135.66,135.6,0.67377349]
[1767635179941,6.11690459,135.65,135.6,0.67377349]
[1767635182148,13.291361,135.64,135.6,0.67377349]
[1767635182344,6.11593438,135.63,135.58,0.67377349]
[1767635182545,5.9189045,135.62,135.58,0.67377349]
[1767635183531,6.02084491,135.62,135.58,0.67377349]
[1767635183928,6.11498349,135.61,135.56,0.67377349]
[1767635184244,13.48918404,135.61,135.56,0.67377349]
[1767635184550,13.48918404,135.61,135.55,7.37721508]
[1767635184551,5.9189045,135.59,135.55,0.67377349]
[1767635184756,6.02178629,135.6,135.55,0.67377349]
[1767635184929,45.16832369,135.61,135.55,0.67377349]
[1767635185329,5.9189045,135.6,135.55,0.67377349]
[1767635185544,39.24941919,135.61,135.55,0.67377349]
[1767635185730,45.16832369,135.61,135.55,0.67377349]
[1767635186131,45.26732369,135.61,135.55,0.67377349]
[1767635186330,45.26732369,135.61,135.56,0.67377349]
[1767635187228,7.37420055,135.61,135.56,0.67377349]
[1767635187553,20.81375043,135.62,135.56,0.67377349]
[1767635188144,7.37375043,135.62,135.56,0.67377349]
[1767635188346,20.81319997,135.63,135.58,0.67377349]
[1767635189234,26.73210447,135.63,135.58,0.67377349]
[1767635189449,7.37319997,135.63,135.58,0.67377349]
[1767635190037,31.72460465,135.63,135.58,0.67377349]
[1767635191053,6.11690459,135.62,135.56,0.67550553]
[1767635191354,0.19800009,135.62,135.56,0.67550553]
[1767635191559,6.11690459,135.62,135.57,0.67550553]
[1767635192058,5.9189045,135.61,135.57,0.67550553]
[1767635192460,13.29315063,135.61,135.57,0.67550553]
[1767635192854,13.29315063,135.61,135.55,0.67550553]
[1767635192855,5.9189045,135.6,135.55,0.67550553]
[1767635193545,6.02084491,135.59,135.52,0.67550553]
[1767635194156,5.9189045,135.56,135.52,0.67550553]
[1767635194339,13.63607899,135.58,135.52,0.67550553]
[1767635194542,26.73516768,135.57,135.52,0.67550553]
[1767635195253,45.17582564,135.57,135.52,0.67550553]
[1767635195452,39.25692114,135.57,135.52,0.67550553]
[1767635195638,45.17582564,135.57,135.52,0.67550553]
[1767635196154,39.25692114,135.57,135.52,0.67550553]
[1767635196348,45.17582564,135.57,135.52,0.67550553]
[1767635196949,45.27870743,135.57,135.52,0.67550553]
[1767635197253,7.37735153,135.55,135.52,0.67550553]
[1767635198863,13.29571181,135.56,135.52,0.67550553]
[1767635199042,7.37680731,135.56,135.52,0.67550553]
[1767635199241,13.29571181,135.56,135.52,0.67550553]
[1767635199763,7.37680731,135.56,135.52,0.67550553]
[1767635199941,13.44,135.57,135.52,0.67550553]
[1767635200341,7.37571913,135.58,135.53,0.67550553]
[1767635202664,20.81538986,135.59,135.53,7.37823141]
[1767635203261,21.40938986,135.59,135.53,7.37823141]
[1767635203559,27.33298116,135.59,135.53,7.37823141]
[1767635203765,21.40938986,135.59,135.53,7.37823141]
[1767635203956,21.40938986,135.59,135.52,7.37898465]
[1767635204558,7.96938986,135.59,135.53,0.67550553]
[1767635205456,7.96938986,135.59,135.54,0.67550553]
[1767635205661,7.37538986,135.59,135.54,0.67550553]
[1767635207150,25.91079199,135.6,135.54,0.67550553]
[1767635209049,0.69399,135.59,135.54,0.67550553]
[1767635209985,0.69399,135.59,135.53,0.67550553]
[1767635210969,0.1049499,135.58,135.54,0.67550553]
[1767635211168,0.1049499,135.57,135.51,14.11550553]
[1767635211465,0.68809959,135.56,135.5,0.67550553]
[1767635211665,0.1107814,135.55,135.5,0.67550553]
[1767635212482,6.0343727,135.55,135.5,0.67550553]
[1767635213470,7.37789582,135.54,135.5,0.67550553]
[1767635214572,7.48838802,135.55,135.5,0.67550553]
[1767635215254,13.41197932,135.55,135.5,0.67550553]
[1767635215571,7.48838802,135.55,135.5,0.67550553]
[1767635216182,0.6648308,135.52,135.47,0.66814764]
[1767635216351,5.9235913,135.52,135.47,0.66814764]
[1767635216552,23.74637502,135.53,135.47,0.66814764]
[1767635217063,14.11024875,135.53,135.47,0.66814764]
[1767635217495,13.44,135.53,135.48,0.66814764]
[1767635217656,21.48375696,135.53,135.48,0.66814764]
[1767635218269,0.1338175,135.52,135.46,0.66814764]
[1767635219375,49.57140167,135.53,135.47,0.66814764]
[1767635220076,39.9352754,135.53,135.47,0.66814764]
[1767635220274,49.57140167,135.53,135.47,0.66814764]
[1767635220468,49.57140167,135.53,135.45,7.38258936]
[1767635220469,9.76994377,135.5,135.45,0.66814764]
[1767635220668,0.65952067,135.49,135.45,0.66814764]
[1767635220870,10.29564694,135.49,135.45,0.66814764]
[1767635221373,0.65952067,135.49,135.45,0.66814764]
[1767635221581,10.29564694,135.49,135.45,0.66814764]
[1767635222261,10.29564694,135.49,135.42,13.44]
[1767635222262,8.04022767,135.49,135.43,0.68950635]
[1767635222464,13.44,135.53,135.46,0.68950635]
[1767635222769,3.77358012,135.52,135.46,0.68950635]
[1767635222971,4.47358012,135.52,135.46,0.68950635]
[1767635223166,0.099,135.51,135.46,0.68950635]
[1767635223377,0.69399,135.5,135.46,0.68950635]
[1767635223882,0.1049499,135.49,135.44,0.68950635]
[1767635224265,7.48580825,135.49,135.44,0.68950635]
[1767635224685,35.57632253,135.49,135.44,0.68950635]
[1767635224886,0.68809959,135.48,135.44,0.68950635]
[1767635225176,0.6280996,135.48,135.44,0.68950635]
[1767635225572,8.00976869,135.48,135.44,0.68950635]
[1767635226173,7.38166909,135.48,135.44,0.68950635]
[1767635228887,7.48066909,135.48,135.44,0.68950635]
[1767635229888,7.38225306,135.46,135.43,0.68950635]
[1767635230382,7.38225306,135.46,135.4,7.38531599]
[1767635230383,7.38225306,135.46,135.41,0.68950635]
[1767635231587,7.32225307,135.46,135.42,0.68950635]
[1767635233289,0.1043559,135.46,135.42,0.68950635]
[1767635234086,13.46,135.47,135.43,0.68950635]
[1767635234390,13.40000001,135.47,135.43,0.68950635]
[1767635235270,13.40000001,135.47,135.44,0.68950635]
[1767635237201,7.48029477,135.48,135.44,0.68950635]
[1767635237402,7.48029477,135.48,135.4,18.46324473]
[1767635237403,0.63459001,135.47,135.43,0.68950635]
[1767635238471,8.02129478,135.48,135.43,0.68950635]
[1767635238678,0.64000001,135.52,135.44,0.68950635]
[1767635239000,14.10000001,135.52,135.44,0.68950635]
[1767635239373,0.099,135.51,135.44,0.68950635]
[1767635239782,0.099,135.51,135.44,26.53107962]
[1767635240012,0.099,135.51,135.45,0.68950635]
[1767635240801,0.099,135.51,135.46,0.68950635]
[1767635241690,7.37898465,135.52,135.47,0.68950635]
[1767635242594,8.01870591,135.53,135.47,0.68950635]
[1767635243104,8.01870591,135.53,135.49,0.68950635]
[1767635243899,14.10000001,135.55,135.49,0.68950635]
[1767635244088,0.099,135.54,135.49,0.68950635]
[1767635244982,0.099,135.54,135.49,8.06996245]
[1767635245592,9.73796805,135.54,135.49,8.06996245]
[1767635245801,0.099,135.54,135.49,8.06996245]
[1767635246702,13.46,135.55,135.5,0.68950635]
[1767635247099,8.01706455,135.56,135.5,0.68950635]
[1767635247795,8.01706455,135.56,135.5,8.06931283]
[1767635248099,7.37656964,135.57,135.51,0.68950635]
[1767635248497,7.47556964,135.57,135.51,0.68950635]
[1767635249199,7.47556964,135.57,135.53,0.68950635]
[1767635250708,0.099,135.57,135.53,0.68950635]
[1767635251189,21.31595145,135.58,135.54,0.71145115]
[1767635251383,21.41495145,135.58,135.54,0.71145115]
[1767635251888,7.95495145,135.58,135.54,0.71145115]
[1767635253601,0.63459001,135.57,135.52,8.09020061]
[1767635255199,0.1043559,135.56,135.52,0.71145115]
[1767635255715,0.62928766,135.55,135.51,14.17145115]
[1767635256114,4.41188561,135.56,135.52,0.71145115]
[1767635256408,11.78873765,135.56,135.52,0.71145115]
[1767635256797,8.01685205,135.56,135.52,0.71145115]
[1767635257109,8.01652419,135.57,135.53,0.71145115]
[1767635257297,11.78840979,135.57,135.53,0.71145115]
[1767635258211,8.01517517,135.59,135.53,0.71145115]
[1767635258408,11.78706077,135.59,135.53,0.71145115]
[1767635258710,0.099,135.58,135.54,0.71145115]
[1767635259798,7.37517516,135.59,135.54,0.71145115]
[1767635259996,7.37517516,135.59,135.55,0.71145115]
[1767635260895,25.22670008,135.6,135.55,0.71145115]
[1767635261598,3.7718856,135.59,135.55,0.71145115]
[1767635262216,11.14713764,135.59,135.55,0.71145115]
[1767635263915,24.58677975,135.6,135.55,0.71145115]
[1767635264107,11.24577975,135.6,135.55,0.71145115]
[1767635264307,3.7718856,135.59,135.55,0.71145115]
[1767635266021,11.1472048,135.59,135.55,0.71145115]
[1767635266327,13.44,135.62,135.56,0.71145115]
[1767635266498,18.53238686,135.63,135.56,0.71145115]
[1767635266697,0.63459001,135.62,135.56,0.71145115]
[1767635266897,0.1043559,135.61,135.56,0.71145115]
[1767635268616,0.1043559,135.61,135.57,7.37626318]
[1767635268924,0.1043559,135.61,135.56,8.08799309]
[1767635269608,0.62928766,135.6,135.56,7.37654194]
[1767635270721,0.62928766,135.6,135.56,8.08799309]
[1767635271021,7.37414563,135.61,135.57,0.71145115]
[1767635273721,11.14603123,135.61,135.57,0.71145115]
[1767635274713,3.7718856,135.59,135.55,14.09264113]
[1767635274920,3.7718856,135.57,135.53,0.65264113]
[1767635276602,0.10960522,135.58,135.53,0.65264113]
[1767635276803,9.78948202,135.57,135.53,0.65264113]
[1767635277025,2.41320709,135.56,135.53,0.65264113]
[1767635278023,10.41357286,135.57,135.53,0.65264113]
[1767635278708,2.41320709,135.57,135.53,0.65264113]
[1767635279610,13.44,135.61,135.54,0.65264113]
[1767635279813,2.41320709,135.58,135.54,0.65264113]
[1767635280128,9.78906055,135.58,135.54,0.65264113]
[1767635280302,0.1043559,135.56,135.53,0.65264113]
[1767635280503,2.51756299,135.56,135.52,0.65264113]
[1767635280926,26.4551513,135.58,135.53,0.66761725]
[1767635281114,2.41320709,135.57,135.53,0.66761725]
[1767635281317,2.51220709,135.57,135.53,0.66761725]
[1767635281519,0.099,135.57,135.53,0.66761725]
[1767635281823,7.37585346,135.58,135.53,0.66761725]
[1767635282018,7.37431739,135.61,135.55,0.66761725]
[1767635282227,7.37367426,135.62,135.57,0.66761725]
[1767635282550,8.0131029,135.63,135.57,0.66761725]
[1767635283112,10.42630999,135.63,135.57,0.66761725]
[1767635283923,10.42630999,135.63,135.58,0.66761725]
[1767635284525,8.0131029,135.63,135.58,0.66761725]
[1767635286016,10.42630999,135.63,135.58,0.66761725]
[1767635286709,2.41320709,135.62,135.58,0.66761725]
[1767635287416,2.51220709,135.62,135.58,0.66761725]
[1767635288928,9.88616895,135.62,135.58,0.66761725]
[1767635289914,7.47296186,135.62,135.58,0.66761725]
[1767635290116,9.88616895,135.62,135.58,0.66761725]
[1767635291029,0.099,135.62,135.58,0.66761725]
[1767635292310,0.099,135.62,135.58,8.04297822]
[1767635292514,8.01269547,135.64,135.59,0.66761725]
[1767635293408,0.099,135.63,135.59,0.66761725]
[1767635294515,2.51220709,135.63,135.59,0.66761725]
[1767635294918,2.51220709,135.63,135.57,18.44020663]
[1767635294919,3.0477971,135.62,135.57,8.04364336]
[1767635295238,3.0477971,135.62,135.58,0.66761725]
[1767635295529,0.63459001,135.62,135.58,0.66761725]
[1767635297044,10.42653803,135.63,135.58,0.66761725]
[1767635297635,10.42653803,135.63,135.59,0.66761725]
[1767635297841,20.91113354,135.65,135.59,0.66761725]
[1767635298060,23.32434063,135.65,135.59,0.66761725]
[1767635298717,41.75412315,135.65,135.59,0.66761725]
[1767635299118,2.41320709,135.64,135.59,0.66761725]
[1767635299441,3.0477971,135.64,135.59,0.66761725]
[1767635300242,10.4207569,135.64,135.59,0.66761725]
[1767635300638,8.00754981,135.64,135.59,0.66761725]
[1767635300836,10.4207569,135.64,135.59,0.66761725]
[1767635301231,8.00754981,135.64,135.59,0.66761725]
[1767635301431,10.4207569,135.64,135.59,0.66761725]
[1767635302521,2.51756299,135.63,135.59,0.66761725]
[1767635303339,2.41320709,135.62,135.59,0.66761725]
[1767635304029,7.37408745,135.61,135.57,0.66761725]
[1767635304630,7.37325953,135.63,135.58,0.66761725]
[1767635305147,9.89082252,135.63,135.58,0.66761725]
[1767635308635,28.3233227,135.63,135.58,0.66761725]
[1767635309145,2.41320709,135.62,135.58,0.66761725]
[1767635309545,28.3233227,135.63,135.58,0.66761725]
[1767635311230,25.91011561,135.63,135.58,0.66761725]
[1767635311441,28.3233227,135.63,135.58,0.66761725]
[1767635313350,9.89082252,135.63,135.58,0.66761725]
[1767635313650,7.37325953,135.63,135.58,7.37552522]
[1767635313850,7.37325953,135.63,135.59,0.6754144]
[1767635314031,7.47225953,135.63,135.59,0.6754144]
[1767635315128,0.63459001,135.62,135.59,0.6754144]
[1767635315337,0.64000001,135.63,135.59,0.6754144]
[1767635316955,0.64000001,135.63,135.59,8.05048034]
[1767635317328,0.64000001,135.64,135.6,0.6754144]
[1767635318331,0.099,135.65,135.6,0.6754144]
[1767635319042,2.51220709,135.65,135.6,0.6754144]
[1767635319651,3.0477971,135.64,135.6,0.6754144]
[1767635319861,0.1043559,135.63,135.6,0.6754144]
[1767635321029,0.64000001,135.64,135.6,0.6754144]
[1767635321838,18.428424,135.66,135.61,0.6754144]
[1767635321839,8.01144118,135.66,135.61,0.6754144]
[1767635322334,0.64000001,135.66,135.61,0.6754144]
[1767635323034,8.01148788,135.66,135.61,0.6754144]
[1767635323847,0.64000001,135.66,135.62,0.6754144]
[1767635325156,8.01148753,135.66,135.62,0.6754144]
[1767635326541,0.099,135.65,135.62,0.6754144]
[1767635330346,0.099,135.65,135.6,8.04981654]
[1767635330544,3.0477971,135.64,135.61,0.6754144]
[1767635330856,0.1043559,135.63,135.6,0.6754144]
[1767635331051,0.1043559,135.63,135.59,0.6754144]
[1767635331369,0.62928766,135.62,135.59,0.6754144]
[1767635331534,3.04249475,135.62,135.58,14.1154144]
[1767635331968,7.37408745,135.61,135.58,14.1154144]
[1767635333366,10.41627735,135.62,135.58,14.1154144]
[1767635333761,8.00307026,135.62,135.59,0.66504978]
[1767635334058,7.3737826,135.62,135.59,0.66504978]
[1767635335169,8.00837261,135.62,135.58,14.10504978]
[1767635335963,8.00837261,135.62,135.59,0.66504978]
[1767635336169,10.42672305,135.63,135.59,0.66504978]
[1767635336479,8.01351596,135.63,135.59,0.66504978]
[1767635336773,0.1043559,135.62,135.58,13.44]
[1767635337071,0.62928766,135.61,135.57,14.10504978]
[1767635337451,0.62928766,135.61,135.58,0.66504978]
[1767635338370,0.62928766,135.61,135.57,14.10504978]
[1767635338556,0.62928766,135.61,135.57,0.66504978]
[1767635339056,0.62928766,135.61,135.57,8.04120708]
[1767635339256,0.62928766,135.61,135.58,0.66504978]
[1767635340171,8.00342948,135.61,135.58,0.66504978]
[1767635340465,0.11475007,135.58,135.55,0.66504978]
[1767635340981,0.11475007,135.58,135.54,0.6999361]
[1767635341149,3.88272664,135.58,135.54,0.6999361]
[1767635342653,7.4905061,135.58,135.54,0.6999361]
[1767635343571,4.40797658,135.61,135.55,0.6999361]
[1767635343772,0.099,135.6,135.55,0.6999361]
[1767635343959,3.86697657,135.6,135.55,0.6999361]
[1767635344776,3.86697657,135.6,135.55,8.07713753]
[1767635345088,11.2416787,135.6,135.55,8.07713753]
[1767635345870,11.2416787,135.6,135.56,0.6999361]
[1767635346176,11.2416787,135.6,135.55,0.6999361]
[1767635346177,0.63459001,135.59,135.55,0.6999361]
[1767635346567,0.64000001,135.62,135.55,0.6999361]
[1767635347274,17.20797657,135.63,135.56,0.6999361]
[1767635347275,21.45324251,135.63,135.56,0.6999361]
[1767635347578,20.8132425,135.63,135.56,0.6999361]
[1767635347777,21.44783251,135.63,135.56,0.6999361]
[1767635348166,0.1043559,135.62,135.57,0.6999361]
[1767635348476,43.65371926,135.63,135.57,0.6999361]
[1767635348678,30.21371926,135.63,135.57,0.6999361]
[1767635348867,11.78121908,135.63,135.57,0.6999361]
[1767635349375,0.099,135.62,135.57,0.6999361]
[1767635350062,3.86697657,135.62,135.57,0.6999361]
[1767635350266,11.24071364,135.62,135.57,0.6999361]
[1767635350574,7.47273707,135.62,135.57,0.6999361]
[1767635350771,7.47273707,135.62,135.58,0.6999361]
[1767635352276,0.64000001,135.63,135.58,0.6999361]
[1767635352479,26.43979361,135.66,135.59,0.6999361]
[1767635352776,30.20777018,135.66,135.59,0.6999361]
[1767635353277,8.01105841,135.67,135.59,0.6999361]
[1767635353469,11.77903498,135.67,135.59,0.6999361]
[1767635354255,11.77903498,135.67,135.61,0.6999361]
[1767635354477,3.86697657,135.66,135.61,0.6999361]
[1767635354981,4.40256658,135.65,135.61,0.6999361]
[1767635356485,0.1043559,135.64,135.6,0.6999361]
[1767635356673,11.14023714,135.65,135.59,0.6999361]
[1767635356674,4.39726423,135.63,135.59,0.6999361]
[1767635357260,0.62928766,135.63,135.59,0.6999361]
[1767635357479,4.39726423,135.63,135.59,0.6999361]
[1767635357786,0.62928766,135.63,135.59,0.6999361]
[1767635357978,4.39726423,135.63,135.59,0.6999361]
[1767635358179,0.62928766,135.63,135.59,0.6999361]
[1767635359784,8.00239397,135.63,135.59,0.6999361]
[1767635359993,0.10960522,135.62,135.57,0.6999361]
[1767635360168,8.01310632,135.63,135.57,0.6999361]
[1767635360369,8.01310632,135.63,135.58,0.6999361]
[1767635360594,11.78108289,135.63,135.58,0.6999361]
[1767635361089,0.1043559,135.6,135.57,0.6999361]
[1767635361263,4.33726424,135.59,135.55,0.6999361]
[1767635361665,3.76797657,135.58,135.53,0.6999361]
[1767635362065,3.76797657,135.57,135.53,0.6999361]
[1767635362494,3.76797657,135.55,135.51,0.6999361]
[1767635362667,3.76797657,135.54,135.5,0.6999361]
[1767635362864,3.70797658,135.54,135.5,0.6999361]
[1767635363286,7.95620317,135.58,135.53,0.6999361]
[1767635363491,3.87173848,135.57,135.53,0.6999361]
[1767635364189,11.24820923,135.57,135.53,0.6999361]
[1767635365090,0.11300331,135.53,135.47,0.6999361]
[1767635365280,3.76797657,135.53,135.49,0.6999361]
[1767635365497,3.76797657,135.54,135.49,0.6999361]
[1767635365701,3.76797657,135.54,135.5,0.6999361]
[1767635365902,4.34797659,135.55,135.51,0.6999361]
[1767635366101,3.76797657,135.54,135.51,0.6999361]
[1767635366393,3.76797657,135.55,135.51,0.6999361]
[1767635366590,8.35013837,135.58,135.51,0.6999361]
[1767635366792,3.76797657,135.55,135.51,0.6999361]
[1767635367786,29.58489771,135.57,135.51,0.6999361]
[1767635367986,3.76797657,135.56,135.49,8.08018682]
[1767635368186,3.76797657,135.55,135.5,0.6999361]
[1767635368700,0.48100002,135.54,135.49,0.6999361]
[1767635369398,0.48100002,135.54,135.49,8.08005238]
[1767635369597,0.48100002,135.54,135.49,0.6999361]
[1767635370303,0.48100002,135.54,135.5,7.3800738]
[1767635370796,0.48100002,135.56,135.51,0.69122899]
[1767635371017,11.6248964,135.58,135.51,0.69122899]
[1767635371304,7.856772,135.58,135.51,0.69122899]
[1767635371509,121.6359146,135.61,135.51,0.69122899]
[1767635371510,4.24897659,135.6,135.51,0.69122899]
[1767635371715,0.48100002,135.6,135.51,0.69122899]
[1767635371887,0.48100002,135.6,135.53,0.69122899]
[1767635372303,0.48100002,135.6,135.55,0.69122899]
[1767635373402,0.48100002,135.6,135.55,8.06824859]
[1767635374193,0.48100002,135.6,135.56,0.69122899]
[1767635375608,0.48100002,135.6,135.56,8.06792553]
[1767635376110,0.48100002,135.6,135.56,0.69122899]
[1767635376707,0.48100002,135.6,135.56,8.06803624]
[1767635379691,0.48100002,135.61,135.57,0.69122899]
[1767635380104,13.92100002,135.62,135.57,0.69122899]
[1767635380297,0.48100002,135.63,135.59,0.69122899]
[1767635380893,0.48100002,135.63,135.58,8.06694812]
[1767635384303,0.099,135.62,135.58,8.06694812]
[1767635385016,0.099,135.62,135.57,8.06725457]
[1767635385228,0.099,135.62,135.57,0.69122899]
[1767635385525,0.099,135.62,135.57,8.06743571]
[1767635386392,0.47718001,135.61,135.56,0.69122899]
[1767635387115,0.48100002,135.62,135.56,0.69122899]
[1767635387303,103.68100002,135.64,135.56,0.69122899]
[1767635388919,14.01899998,135.65,135.58,0.69122899]
[1767635389416,13.539,135.65,135.58,0.69122899]
[1767635390723,20.91104607,135.65,135.59,7.37517516]
[1767635391017,20.91104607,135.65,135.6,0.69122899]
[1767635391829,20.91104607,135.65,135.61,0.69122899]
[1767635393930,0.47718001,135.64,135.57,0.71570206]
[1767635394223,0.1027818,135.62,135.57,0.71570206]
[1767635394416,39.24182859,135.65,135.58,0.71570206]
[1767635394417,17.68897659,135.64,135.58,0.71570206]
[1767635394926,0.1027818,135.61,135.56,0.71570206]
[1767635395222,17.31075837,135.61,135.56,0.71570206]
[1767635396028,7.37463126,135.6,135.56,0.71570206]
[1767635397609,13.44,135.61,135.57,0.71570206]
[1767635398021,20.81409021,135.61,135.57,0.71570206]
[1767635398414,24.58206678,135.61,135.57,0.71570206]
[1767635398615,23.22604465,135.61,135.57,0.71570206]
[1767635398914,13.44,135.61,135.57,0.71570206]
[1767635399342,13.44,135.61,135.58,0.71570206]
[1767635399540,7.85441575,135.63,135.58,0.71570206]
[1767635400203,20.81287205,135.64,135.58,0.71570206]
[1767635400431,7.85253709,135.66,135.58,0.71570206]
[1767635401311,7.85253709,135.66,135.6,0.70510882]
[1767635402417,0.48100002,135.66,135.6,0.70510882]
[1767635402610,23.22304093,135.67,135.6,0.70510882]
[1767635402611,23.32204093,135.67,135.6,0.70510882]
[1767635402934,20.91008649,135.67,135.6,0.70510882]
[1767635403241,23.32204093,135.67,135.6,0.70510882]
[1767635403422,23.32204093,135.67,135.61,0.70510882]
[1767635404130,2.51473624,135.65,135.61,0.70510882]
[1767635404432,0.1027818,135.65,135.61,0.70510882]
[1767635404630,2.89295446,135.66,135.61,0.70510882]
[1767635405512,16.33295446,135.67,135.62,0.70510882]
[1767635405710,20.81097931,135.67,135.62,0.67510882]
[1767635406428,2.51503324,135.66,135.62,0.67510882]
[1767635406729,2.91479644,135.65,135.59,7.37488365]
[1767635406906,2.51903087,135.64,135.57,75.04]
[1767635407109,2.90695989,135.61,135.53,5.51529]
[1767635407320,2.90695989,135.61,135.53,13.44]
[1767635407513,9.7865857,135.6,135.53,13.44]
[1767635407717,9.7865857,135.6,135.55,0.70510882]
[1767635407933,7.37463126,135.6,135.55,0.70510882]
[1767635408120,9.7865857,135.6,135.55,0.70510882]
[1767635409933,7.37463126,135.6,135.55,0.70510882]
[1767635410118,9.7865857,135.6,135.55,0.70510882]
[1767635410734,9.7865857,135.6,135.56,0.70510882]
[1767635410735,2.41195444,135.6,135.56,0.70510882]
[1767635410928,23.22624621,135.61,135.57,0.70510882]
[1767635411238,20.81429177,135.61,135.57,0.70510882]
[1767635411420,2.91883445,135.6,135.55,0.70510882]
[1767635412916,2.91883445,135.6,135.56,0.70510882]
[1767635412917,10.29364808,135.6,135.56,0.70510882]
[1767635413737,23.22608431,135.61,135.56,0.70510882]
[1767635413929,20.81412987,135.61,135.56,0.70510882]
[1767635414920,20.81412987,135.61,135.56,8.08183815]
[1767635415120,20.81412987,135.61,135.57,0.70510882]
[1767635415441,34.79338014,135.65,135.57,0.70510882]
[1767635416021,18.93872784,135.67,135.59,0.70510882]
[1767635416225,32.37872784,135.67,135.59,0.70510882]
[1767635416425,13.44,135.67,135.61,0.70510882]
[1767635416937,13.94688001,135.67,135.61,0.70510882]
[1767635417134,13.94688001,135.67,135.62,8.07865254]
[1767635417450,21.31775066,135.67,135.62,8.07865254]
[1767635417657,13.44,135.67,135.63,0.70510882]
[1767635417940,2.41195444,135.69,135.63,0.70510882]
[1767635417941,0.51100002,135.69,135.63,0.70510882]
[1767635418721,0.099,135.68,135.63,8.07794978]
[1767635420950,0.099,135.68,135.64,0.70510882]
[1767635421357,9.78179708,135.69,135.64,0.70510882]
[1767635421530,7.46884264,135.69,135.64,0.70510882]
[1767635421730,9.88079708,135.69,135.64,0.70510882]
[1767635422141,9.78179708,135.69,135.64,0.70510882]
[1767635422751,7.36984264,135.69,135.64,0.70510882]
[1767635422951,0.50688001,135.71,135.65,0.70510882]
[1767635423634,8.36923329,135.72,135.65,0.70510882]
[1767635423839,1.00100002,135.72,135.67,0.70510882]
[1767635424147,7.56676369,135.73,135.67,0.70510882]
[1767635424346,7.46776369,135.73,135.67,0.70510882]
[1767635424940,0.1,135.73,135.68,0.70510882]
[1767635426652,7.3664825,135.75,135.72,0.70510882]
[1767635427953,8.808031,135.82,135.76,0.70510882]
[1767635428157,8.08129118,135.8,135.72,7.36805431]
[1767635428355,28.90267124,135.8,135.72,5.51529]
[1767635428528,0.71731873,135.77,135.65,0.7371913]
[1767635428730,0.71731873,135.77,135.69,7.36955249]
[1767635429036,0.71731873,135.76,135.67,31.31229906]
[1767635429442,10.49486883,135.77,135.67,31.31229906]
[1767635430039,10.49486883,135.77,135.68,0.70510882]